[Event "Weekendtournooi Groningen & PK NOSBO"]
[Site "Groningen, Netherlands"]
[Date "2023.05.21"]
[Round "6.8"]
[White "Noordenbos, Daan"]
[Black "Van Foreest, Nanne"]
[Result "1-0"]
[TimeControl "90min + 30sec/move"]
[WhiteElo "2076"]
[BlackElo "1914"]

1. e4 {[%clk 01:30:57]} {[%emt 00:00:43]} c5 {[%clk 01:28:29]} {[%emt
00:02:03]} 2. Nf3 {[%clk 01:31:14]} {[%emt 00:00:14]} e6 {[%clk 01:28:41]}
{[%emt 00:00:29]} 3. d4 {[%clk 01:31:38]} cxd4 {[%clk 01:29:09]} 4. Nxd4 {[%clk
01:31:51]} {[%emt 00:00:04]} Nf6 {[%clk 01:29:37]} {[%emt 00:00:03]} 5. Nc3
{[%clk 01:32:16]} {[%emt 00:00:05]} Nc6 {[%clk 01:29:59]} {[%emt 00:00:10]} 6.
Nxc6 {[%clk 01:32:38]} {[%emt 00:00:06]} bxc6 {[%clk 01:30:25]} {[%emt
00:00:08]} 7. e5 {[%clk 01:32:57]} {[%emt 00:00:13]} Nd5 {[%clk 01:30:50]} 8.
Ne4 {[%clk 01:33:19]} {[%emt 00:00:05]} Qc7 {[%clk 01:31:17]} {[%emt 00:00:23]}
9. f4 {[%clk 01:33:32]} {[%emt 00:00:06]} Qb6 {[%clk 01:31:44]} 10. c4 {[%clk
01:33:53]} {[%emt 00:00:10]} Bb4+ {[%clk 01:32:08]} 11. Ke2 {[%clk 01:34:11]}
{[%emt 00:00:13]} f5 {[%clk 01:32:31]} {[%emt 00:00:16]} 12. Nf2 {[%clk
01:34:16]} {[%emt 00:00:16]} Ba6 {[%clk 01:32:58]} {[%emt 00:00:03]} 13. Kf3
{[%clk 01:34:31]} {[%emt 00:00:12]} Ne7 {[%clk 01:33:22]} {[%emt 00:00:35]} 14.
Be3 {[%clk 01:34:37]} Bc5 {[%clk 01:33:50]} {[%emt 00:00:12]} 15. Bxc5 {[%clk
01:34:51]} {[%emt 00:00:06]} Qxc5 {[%clk 01:34:19]} {[%emt 00:00:03]} 16. Qd6
{[%clk 01:34:57]} {[%emt 00:00:17]} Qb6 {[%clk 01:34:46]} {[%emt 00:00:29]} 17.
b3 {[%clk 01:35:17]} {[%emt 00:00:18]} Bb7 {[%clk 01:31:58]} {[%emt 00:02:50]}
18. Rd1 {[%clk 01:22:50]} {[%emt 00:12:52]} c5+ {[%clk 01:27:55]} {[%emt
00:04:36]} 19. Ke3 {[%clk 01:22:23]} {[%emt 00:00:56]} Qxd6 {[%clk 01:26:32]}
{[%emt 00:01:51]} 20. exd6 {[%clk 01:19:12]} {[%emt 00:03:42]} Ng8 {[%clk
01:25:11]} {[%emt 00:01:53]} 21. Nd3 {[%clk 01:19:01]} {[%emt 00:00:38]} Rc8
{[%clk 01:25:39]} {[%emt 00:00:30]} 22. Ne5 {[%clk 01:18:11]} {[%emt 00:00:51]}
Nf6 {[%clk 01:25:35]} {[%emt 00:02:34]} 23. Be2 {[%clk 01:16:36]} {[%emt
00:00:06]} a5 {[%clk 01:19:49]} {[%emt 00:06:26]} 24. Rhg1 {[%clk 01:13:25]}
{[%emt 00:03:33]} O-O {[%clk 01:16:41]} {[%emt 00:04:26]} 25. h3 {[%clk
01:07:32]} {[%emt 00:05:34]} Rfd8 {[%clk 01:13:43]} {[%emt 00:03:26]} 26. g4
{[%clk 01:03:23]} {[%emt 00:04:39]} a4 {[%clk 01:11:24]} {[%emt 00:02:49]} 27.
g5 {[%clk 00:47:13]} {[%emt 00:16:40]} Ne4 {[%clk 01:10:41]} {[%emt 00:01:22]}
28. Bf3 {[%clk 00:45:38]} {[%emt 00:01:57]} Rb8 {[%clk 01:09:03]} {[%emt
00:02:34]} 29. Rd3 {[%clk 00:42:16]} {[%emt 00:03:34]} Ba8 {[%clk 01:07:10]}
{[%emt 00:02:15]} 30. bxa4 {[%clk 00:34:03]} {[%emt 00:08:43]} Rb6 {[%clk
00:59:27]} {[%emt 00:08:13]} 31. Rgd1 {[%clk 00:31:55]} {[%emt 00:02:37]} Ra6
{[%clk 00:59:17]} {[%emt 00:00:41]} 32. Bxe4 {[%clk 00:31:16]} {[%emt
00:01:09]} Bxe4 {[%clk 00:54:26]} {[%emt 00:05:20]} 33. Ra3 {[%clk 00:31:24]}
{[%emt 00:00:34]} Bc2 {[%clk 00:54:36]} {[%emt 00:00:11]} 34. Rd2 {[%clk
00:31:40]} {[%emt 00:00:20]} Rxa4 {[%clk 00:54:16]} {[%emt 00:00:44]} 35. Rxa4
{[%clk 00:32:03]} {[%emt 00:00:07]} Bxa4 {[%clk 00:54:44]} {[%emt 00:00:04]} 36.
Rb2 {[%clk 00:32:05]} {[%emt 00:00:23]} Bc6 {[%clk 00:50:47]} {[%emt 00:04:38]}
37. Nd3 {[%clk 00:31:39]} {[%emt 00:00:46]} Ra8 {[%clk 00:50:37]} {[%emt
00:00:40]} 38. Nxc5 {[%clk 00:29:58]} {[%emt 00:02:11]} Kf7 {[%clk 00:46:47]}
{[%emt 00:04:31]} 39. Nd3 {[%clk 00:30:02]} {[%emt 00:00:19]} Be4 {[%clk
00:42:50]} {[%emt 00:04:25]} 40. Ne5+ {[%clk 00:30:20]} {[%emt 00:00:11]} Ke8
{[%clk 00:43:19]} 41. a4 {[%clk 00:30:22]} {[%emt 00:00:27]} Kd8 {[%clk
00:43:24]} {[%emt 00:00:43]} 42. Rb4 {[%clk 00:30:25]} {[%emt 00:00:09]} Kc8
{[%clk 00:43:35]} {[%emt 00:00:27]} 43. c5 {[%clk 00:30:08]} {[%emt 00:01:10]}
Bc2 {[%clk 00:42:48]} {[%emt 00:00:46]} 44. Nc4 {[%clk 00:30:25]} {[%emt
00:00:51]} Rb8 {[%clk 00:41:13]} {[%emt 00:01:27]} 45. Nb6+ {[%clk 00:30:47]}
{[%emt 00:00:23]} Kd8 {[%clk 00:41:28]} {[%emt 00:00:08]} 46. a5 {[%clk
00:30:44]} {[%emt 00:00:41]} Be4 {[%clk 00:40:46]} {[%emt 00:01:11]} 47. a6
{[%emt 00:00:51]} 1-0

[Event "Weekendtournooi Groningen & PK NOSBO"]
[Site "Groningen, Netherlands"]
[Date "2023.05.21"]
[Round "6.9"]
[White "Van De Poel, Taco"]
[Black "Clemens, Adrian"]
[Result "1/2-1/2"]
[TimeControl "90min + 30sec/move"]
[BlackTitle "FM"]
[WhiteElo "1854"]
[BlackElo "2060"]

1. e4 {[%emt 00:00:05]} c5 {[%emt 00:00:16]} 2. Nf3 {[%clk 01:30:12]} {[%emt
00:00:26]} d6 {[%clk 01:30:35]} {[%emt 00:00:26]} 3. d4 {[%clk 01:30:36]}
{[%emt 00:00:10]} cxd4 {[%clk 01:31:00]} {[%emt 00:00:01]} 4. Nxd4 {[%clk
01:31:04]} {[%emt 00:00:08]} Nf6 {[%clk 01:31:18]} {[%emt 00:00:09]} 5. Nc3
{[%clk 01:31:28]} {[%emt 00:00:07]} Nc6 {[%clk 01:31:22]} {[%emt 00:00:22]} 6.
Bc4 {[%clk 01:31:16]} {[%emt 00:00:47]} Qb6 {[%clk 01:29:22]} {[%emt 00:02:30]}
7. Nb3 {[%clk 01:31:34]} {[%emt 00:00:10]} e6 {[%clk 01:28:15]} {[%emt
00:01:35]} 8. Be3 {[%clk 01:28:55]} {[%emt 00:03:08]} Qc7 {[%clk 01:28:11]}
{[%emt 00:00:36]} 9. O-O {[%clk 01:23:26]} {[%emt 00:05:59]} Be7 {[%clk
01:23:54]} {[%emt 00:04:47]} 10. f4 {[%clk 01:21:55]} {[%emt 00:02:04]} O-O
{[%clk 01:24:01]} {[%emt 00:00:19]} 11. Bd3 {[%clk 01:17:37]} {[%emt 00:04:53]}
b6 {[%clk 01:15:03]} {[%emt 00:09:23]} 12. g4 {[%clk 01:17:27]} {[%emt
00:00:39]} Bb7 {[%clk 01:05:16]} {[%emt 00:10:17]} 13. g5 {[%clk 01:17:16]}
{[%emt 00:00:41]} Nd7 {[%clk 01:05:40]} {[%emt 00:00:05]} 14. e5 {[%clk
00:52:46]} {[%emt 00:25:03]} Ncxe5 {[%clk 00:49:05]} {[%emt 00:18:55]} 15. fxe5
{[%clk 00:50:29]} {[%emt 00:00:56]} Nxe5 {[%clk 00:49:29]} {[%emt 00:00:06]} 16.
Be4 {[%clk 00:47:06]} {[%emt 00:03:53]} d5 {[%clk 00:48:32]} {[%emt 00:01:31]}
17. Bxh7+ {[%clk 00:40:42]} {[%emt 00:06:51]} Kxh7 {[%clk 00:48:43]} {[%emt
00:00:18]} 18. Bf4 {[%clk 00:41:10]} Ba6 {[%clk 00:44:55]} {[%emt 00:04:27]} 19.
Qh5+ {[%clk 00:32:00]} {[%emt 00:09:33]} Kg8 {[%clk 00:44:51]} {[%emt
00:00:37]} 20. Rae1 {[%clk 00:26:45]} {[%emt 00:05:42]} Bd6 {[%clk 00:33:02]}
{[%emt 00:12:18]} 21. Bxe5 {[%clk 00:23:21]} {[%emt 00:03:54]} Bxe5 {[%clk
00:31:39]} {[%emt 00:01:54]} 22. g6 {[%clk 00:22:13]} {[%emt 00:01:41]} Bxh2+
{[%clk 00:27:51]} {[%emt 00:04:19]} 23. Kh1 {[%clk 00:19:41]} {[%emt 00:02:58]}
fxg6 {[%clk 00:26:26]} {[%emt 00:01:55]} 24. Rxf8+ {[%clk 00:19:58]} {[%emt
00:00:21]} Rxf8 {[%clk 00:26:48]} 25. Qxh2 {[%clk 00:18:26]} {[%emt 00:02:09]}
Qxh2+ {[%clk 00:24:04]} {[%emt 00:03:09]} 26. Kxh2 {[%clk 00:18:55]} Rf2+
{[%clk 00:24:12]} {[%emt 00:00:26]} 27. Kg3 {[%clk 00:19:11]} {[%emt 00:00:09]}
Rxc2 {[%clk 00:24:36]} {[%emt 00:00:05]} 28. Rxe6 {[%clk 00:17:14]} {[%emt
00:02:28]} Rxb2 {[%clk 00:24:32]} {[%emt 00:00:35]} 29. Re8+ {[%clk 00:15:20]}
{[%emt 00:02:22]} Kh7 {[%clk 00:24:42]} {[%emt 00:00:20]} 30. Nd4 {[%clk
00:12:10]} {[%emt 00:03:43]} Bc4 {[%clk 00:21:04]} {[%emt 00:04:09]} 31. Ne6
{[%clk 00:12:03]} {[%emt 00:00:36]} g5 {[%clk 00:20:33]} {[%emt 00:01:02]} 32.
Re7 {[%clk 00:08:24]} {[%emt 00:04:08]} Rc2 {[%clk 00:17:12]} {[%emt 00:03:49]}
33. Nd1 {[%clk 00:04:01]} {[%emt 00:04:57]} Rxa2 {[%clk 00:17:24]} {[%emt
00:00:14]} 34. Ne3 {[%clk 00:03:40]} {[%emt 00:00:51]} Kg6 {[%clk 00:16:07]}
{[%emt 00:01:47]} 35. Ng4 {[%clk 00:03:38]} {[%emt 00:00:36]} Ra3+ {[%clk
00:16:08]} {[%emt 00:00:25]} 36. Kf2 {[%clk 00:03:31]} {[%emt 00:00:37]} Kf5
{[%clk 00:15:49]} {[%emt 00:00:48]} 37. Ne3+ {[%clk 00:03:46]} {[%emt
00:00:15]} Kf6 {[%clk 00:16:10]} {[%emt 00:00:09]} 38. Re8 {[%clk 00:04:09]}
{[%emt 00:00:07]} Kf7 {[%clk 00:13:49]} {[%emt 00:02:51]} 39. Nc7 {[%clk
00:04:31]} {[%emt 00:00:09]} Ra2+ {[%clk 00:14:01]} {[%emt 00:00:18]} 40. Kg3
{[%clk 00:04:39]} {[%emt 00:00:21]} Re2 {[%clk 00:12:57]} {[%emt 00:01:38]} 41.
Kf3 {[%clk 00:02:35]} {[%emt 00:02:33]} b5 {[%clk 00:12:20]} {[%emt 00:01:04]}
42. Nxc4 {[%clk 00:02:16]} {[%emt 00:00:49]} Rxe8 {[%clk 00:12:29]} {[%emt
00:00:22]} 43. Nd6+ {[%clk 00:02:40]} {[%emt 00:00:05]} Ke7 {[%clk 00:12:39]}
{[%emt 00:00:21]} 44. Ndxe8 {[%clk 00:02:33]} {[%emt 00:00:37]} Kd7 {[%clk
00:12:56]} {[%emt 00:00:13]} 45. Nxb5 {[%clk 00:02:20]} {[%emt 00:00:42]} Kxe8
{[%clk 00:13:15]} {[%emt 00:00:12]} 46. Nxa7 {[%clk 00:02:37]} {[%emt
00:00:13]} Kd7 {[%clk 00:13:25]} {[%emt 00:00:20]} 47. Nb5 {[%clk 00:02:48]}
{[%emt 00:00:25]} Kc6 {[%clk 00:12:44]} {[%emt 00:01:05]} 48. Nd4+ {[%clk
00:03:00]} {[%emt 00:00:18]} Kc5 {[%clk 00:13:09]} {[%emt 00:00:09]} 49. Ne6+
{[%clk 00:02:45]} {[%emt 00:00:53]} Kc4 {[%clk 00:12:57]} {[%emt 00:00:29]} 50.
Nxg5 {[%clk 00:02:09]} {[%emt 00:01:09]} d4 {[%clk 00:12:13]} {[%emt 00:01:12]}
51. Ne6 {[%clk 00:01:20]} {[%emt 00:01:19]} d3 {[%clk 00:12:22]} {[%emt
00:00:21]} 52. Nxg7 {[%clk 00:01:37]} {[%emt 00:00:14]} Kc3 {[%clk 00:12:43]}
{[%emt 00:00:11]} 53. Nf5 {[%clk 00:02:01]} {[%emt 00:00:05]} d2 {[%clk
00:12:03]} {[%emt 00:00:12]} 1/2-1/2

[Event "Weekendtournooi Groningen & PK NOSBO"]
[Site "Groningen, Netherlands"]
[Date "2023.05.21"]
[Round "6.10"]
[White "Aden, Meino"]
[Black "Kazarjan, Gachatur"]
[Result "1-0"]
[TimeControl "90min + 30sec/move"]
[WhiteElo "1897"]
[BlackElo "1906"]

1. d4 {[%clk 01:30:57]} {[%emt 00:00:15]} Nf6 {[%clk 01:29:35]} {[%emt
00:01:19]} 2. Bf4 {[%clk 01:31:21]} {[%emt 00:00:07]} c5 {[%clk 01:29:45]}
{[%emt 00:00:15]} 3. dxc5 {[%clk 01:29:39]} {[%emt 00:02:31]} Nc6 {[%clk
01:29:05]} {[%emt 00:00:47]} 4. Nf3 {[%clk 01:29:21]} {[%emt 00:00:48]} Qa5+
{[%clk 01:29:22]} {[%emt 00:00:45]} 5. c3 {[%clk 01:29:44]} Qxc5 {[%clk
01:29:48]} 6. Nbd2 {[%clk 01:29:38]} {[%emt 00:00:16]} d6 {[%clk 01:29:01]}
{[%emt 00:01:17]} 7. e3 {[%clk 01:29:00]} {[%emt 00:01:07]} g6 {[%clk
01:29:23]} {[%emt 00:00:21]} 8. Be2 {[%clk 01:28:18]} {[%emt 00:01:00]} Bg7
{[%clk 01:29:43]} {[%emt 00:00:08]} 9. O-O {[%clk 01:28:03]} {[%emt 00:00:45]}
Bd7 {[%clk 01:27:13]} {[%emt 00:03:01]} 10. h3 {[%clk 01:27:26]} {[%emt
00:01:09]} O-O {[%clk 01:27:31]} {[%emt 00:00:08]} 11. Nb3 {[%clk 01:26:46]}
{[%emt 00:01:10]} Qb6 {[%clk 01:27:50]} {[%emt 00:00:19]} 12. Bd3 {[%clk
01:24:35]} {[%emt 00:02:35]} Rfe8 {[%clk 01:26:03]} {[%emt 00:02:16]} 13. e4
{[%clk 01:23:20]} {[%emt 00:01:44]} Rad8 {[%clk 01:24:40]} {[%emt 00:02:08]} 14.
Qe2 {[%clk 01:21:08]} {[%emt 00:02:28]} Nh5 {[%clk 01:20:07]} {[%emt 00:05:02]}
15. Be3 {[%clk 01:17:02]} {[%emt 00:04:42]} Qc7 {[%clk 01:20:16]} {[%emt
00:00:18]} 16. Nfd4 {[%clk 01:13:57]} {[%emt 00:03:33]} a6 {[%clk 01:17:38]}
{[%emt 00:03:08]} 17. Rac1 {[%clk 01:13:44]} {[%emt 00:01:17]} Ne5 {[%clk
01:17:22]} {[%emt 00:00:11]} 18. Rfd1 {[%clk 01:12:17]} {[%emt 00:02:03]} Nxd3
{[%clk 01:15:03]} {[%emt 00:02:42]} 19. Qxd3 {[%clk 01:12:40]} {[%emt
00:00:21]} e5 {[%clk 01:14:48]} {[%emt 00:00:52]} 20. Nc2 {[%clk 01:10:50]}
{[%emt 00:02:37]} Be6 {[%clk 01:10:42]} {[%emt 00:03:59]} 21. Nb4 {[%clk
01:08:36]} {[%emt 00:02:44]} f5 {[%clk 01:10:31]} {[%emt 00:00:41]} 22. Nd5
{[%clk 01:06:27]} {[%emt 00:02:42]} Bxd5 {[%clk 01:09:58]} {[%emt 00:01:06]} 23.
Qxd5+ {[%clk 01:01:12]} {[%emt 00:05:39]} Kh8 {[%clk 01:09:08]} {[%emt
00:01:25]} 24. f3 {[%clk 00:59:19]} {[%emt 00:02:20]} fxe4 {[%clk 01:08:36]}
{[%emt 00:00:59]} 25. fxe4 {[%clk 00:59:46]} {[%emt 00:00:19]} Rf8 {[%clk
01:00:24]} {[%emt 00:09:05]} 26. Bg5 {[%clk 00:57:46]} {[%emt 00:01:51]} Nf4
{[%clk 00:59:12]} {[%emt 00:01:44]} 27. Qd2 {[%clk 00:56:12]} {[%emt 00:02:12]}
Rd7 {[%clk 00:58:38]} {[%emt 00:00:59]} 28. Kh2 {[%clk 00:55:52]} {[%emt
00:00:43]} Qc4 {[%clk 00:58:15]} {[%emt 00:00:54]} 29. Bxf4 {[%clk 00:54:53]}
{[%emt 00:01:28]} Rxf4 {[%clk 00:58:01]} {[%emt 00:00:44]} 30. Qd5 {[%clk
00:53:51]} {[%emt 00:01:45]} Qxd5 {[%clk 00:51:45]} {[%emt 00:06:34]} 31. Rxd5
{[%clk 00:53:07]} {[%emt 00:01:14]} Bf8 {[%clk 00:51:19]} {[%emt 00:01:15]} 32.
Rcd1 {[%clk 00:52:13]} {[%emt 00:01:04]} Rdf7 {[%clk 00:51:06]} {[%emt
00:00:45]} 33. Nd2 {[%clk 00:50:32]} {[%emt 00:02:12]} Rf2 {[%clk 00:50:13]}
{[%emt 00:01:21]} 34. Kg1 {[%clk 00:47:14]} {[%emt 00:03:48]} b5 {[%clk
00:45:55]} {[%emt 00:04:55]} 35. Rf1 {[%clk 00:46:08]} {[%emt 00:01:31]} Bh6
{[%clk 00:43:27]} {[%emt 00:02:57]} 36. Rxf2 {[%clk 00:45:50]} {[%emt
00:00:48]} Be3 {[%clk 00:43:47]} {[%emt 00:00:29]} 37. Nf3 {[%clk 00:46:13]}
{[%emt 00:00:06]} 1-0

[Event "Weekendtournooi Groningen & PK NOSBO"]
[Site "Groningen, Netherlands"]
[Date "2023.05.21"]
[Round "6.11"]
[White "Basinas, Konstantinos"]
[Black "Enserink, Henk"]
[Result "1-0"]
[TimeControl "90min + 30sec/move"]
[WhiteElo "1902"]
[BlackElo "1787"]

1. e4 {[%clk 01:30:45]} {[%emt 00:00:15]} e5 {[%clk 01:30:29]} {[%emt
00:00:31]} 2. Nf3 {[%clk 01:30:29]} {[%emt 00:00:46]} Nc6 {[%clk 01:30:48]}
{[%emt 00:00:33]} 3. Bc4 {[%clk 01:30:53]} Bc5 {[%clk 01:31:01]} {[%emt
00:00:10]} 4. d3 {[%clk 01:30:08]} {[%emt 00:01:17]} d6 {[%clk 01:31:05]}
{[%emt 00:00:15]} 5. c3 {[%clk 01:30:09]} {[%emt 00:00:35]} Bg4 {[%clk
01:30:56]} {[%emt 00:00:39]} 6. Nbd2 {[%clk 01:28:51]} {[%emt 00:02:07]} Nf6
{[%clk 01:30:22]} {[%emt 00:00:42]} 7. h3 {[%clk 01:29:10]} {[%emt 00:00:10]}
Bh5 {[%clk 01:30:00]} {[%emt 00:01:20]} 8. Nf1 {[%clk 01:24:56]} {[%emt
00:04:15]} h6 {[%clk 01:27:32]} {[%emt 00:02:58]} 9. Ng3 {[%clk 01:25:06]}
{[%emt 00:00:30]} Bg6 {[%clk 01:26:45]} {[%emt 00:01:07]} 10. O-O {[%clk
01:16:59]} {[%emt 00:08:43]} O-O {[%clk 01:21:01]} {[%emt 00:06:07]} 11. Nh4
{[%clk 01:08:05]} {[%emt 00:09:26]} Nxe4 {[%clk 01:09:42]} {[%emt 00:11:48]} 12.
Nxg6 {[%clk 01:05:04]} {[%emt 00:03:41]} Nxf2 {[%clk 01:06:28]} {[%emt
00:03:36]} 13. Rxf2 {[%clk 01:03:48]} {[%emt 00:01:43]} Bxf2+ {[%clk 01:06:46]}
{[%emt 00:00:40]} 14. Kxf2 {[%clk 01:03:59]} {[%emt 00:00:04]} Qf6+ {[%clk
01:07:07]} {[%emt 00:00:04]} 15. Qf3 {[%clk 01:00:31]} {[%emt 00:03:51]} Qxg6
{[%clk 01:07:20]} {[%emt 00:00:18]} 16. h4 {[%clk 00:55:16]} {[%emt 00:06:09]}
e4 {[%clk 01:03:15]} {[%emt 00:04:10]} 17. Qxe4 {[%clk 00:51:35]} {[%emt
00:04:12]} Qxe4 {[%clk 01:02:42]} {[%emt 00:01:01]} 18. dxe4 {[%clk 00:51:24]}
{[%emt 00:00:41]} Ne5 {[%clk 01:02:52]} {[%emt 00:00:43]} 19. Bb3 {[%clk
00:48:10]} {[%emt 00:06:40]} Nd3+ {[%clk 00:55:34]} {[%emt 00:04:30]} 20. Ke3
{[%clk 00:46:25]} {[%emt 00:03:11]} Nxc1 {[%clk 00:55:22]} 21. Rxc1 {[%clk
00:46:53]} g6 {[%clk 00:55:11]} {[%emt 00:00:37]} 22. Ne2 {[%clk 00:44:37]}
{[%emt 00:02:43]} Kg7 {[%clk 00:54:33]} {[%emt 00:01:07]} 23. Nd4 {[%clk
00:42:38]} {[%emt 00:02:22]} c6 {[%clk 00:52:40]} {[%emt 00:02:42]} 24. h5
{[%clk 00:41:39]} {[%emt 00:01:10]} Rae8 {[%clk 00:48:03]} {[%emt 00:05:08]} 25.
hxg6 {[%emt 00:08:57]} fxg6 26. Ne6+ {[%clk 00:33:12]} 1-0

[Event "Weekendtournooi Groningen & PK NOSBO"]
[Site "Groningen, Netherlands"]
[Date "2023.05.21"]
[Round "7.1"]
[White "Maatman, Nick"]
[Black "Jacobs, Florian"]
[Result "1-0"]
[TimeControl "90min + 30sec/move"]
[WhiteTitle "IM"]
[WhiteElo "2348"]
[BlackElo "2227"]

1. Nf3 {[%clk 01:22:30]} {[%emt 00:08:30]} d5 {[%clk 01:30:52]} {[%emt
00:00:31]} 2. g3 {[%clk 01:22:48]} Nf6 {[%clk 01:30:42]} {[%emt 00:00:33]} 3.
Bg2 {[%clk 01:23:08]} {[%emt 00:00:07]} c5 {[%clk 01:30:46]} {[%emt 00:00:41]}
4. O-O {[%clk 01:23:21]} {[%emt 00:00:05]} Nc6 {[%clk 01:29:59]} {[%emt
00:01:13]} 5. d4 {[%clk 01:23:29]} {[%emt 00:00:43]} cxd4 {[%clk 01:30:23]} 6.
Nxd4 {[%clk 01:23:56]} e5 {[%clk 01:30:47]} {[%emt 00:00:09]} 7. Nxc6 {[%clk
01:24:21]} bxc6 {[%clk 01:31:13]} 8. c4 {[%clk 01:24:42]} {[%emt 00:00:05]} Be6
{[%clk 01:31:36]} {[%emt 00:00:12]} 9. Qa4 {[%clk 01:20:06]} {[%emt 00:05:47]}
Qd7 {[%clk 01:31:59]} 10. Rd1 {[%clk 01:14:19]} {[%emt 00:05:38]} Rc8 {[%clk
01:31:38]} {[%emt 00:00:49]} 11. cxd5 {[%clk 01:13:11]} {[%emt 00:01:38]} cxd5
{[%clk 01:32:01]} {[%emt 00:00:39]} 12. Qxd7+ {[%clk 01:13:38]} Nxd7 {[%clk
01:30:23]} {[%emt 00:01:37]} 13. e3 {[%clk 01:06:42]} {[%emt 00:07:27]} Bb4
{[%clk 01:21:21]} {[%emt 00:09:32]} 14. a3 {[%clk 01:03:08]} {[%emt 00:04:04]}
Ba5 {[%clk 01:21:12]} {[%emt 00:00:39]} 15. b4 {[%clk 00:59:11]} {[%emt
00:04:28]} Bb6 {[%clk 01:21:01]} {[%emt 00:00:40]} 16. Bb2 {[%clk 00:59:01]}
{[%emt 00:00:43]} d4 {[%clk 01:07:15]} {[%emt 00:14:14]} 17. exd4 {[%clk
00:55:32]} {[%emt 00:04:37]} Rc2 {[%clk 01:06:28]} {[%emt 00:00:38]} 18. Rd2
{[%clk 00:45:46]} {[%emt 00:10:17]} Rxd2 {[%clk 00:32:47]} {[%emt 00:34:12]} 19.
Nxd2 {[%clk 00:46:03]} {[%emt 00:00:15]} Bxd4 {[%clk 00:33:07]} {[%emt
00:00:33]} 20. Bxd4 {[%clk 00:46:26]} {[%emt 00:00:04]} exd4 {[%clk 00:33:34]}
21. Nf3 {[%clk 00:40:57]} {[%emt 00:05:40]} d3 {[%clk 00:31:12]} {[%emt
00:02:49]} 22. Rd1 {[%clk 00:34:33]} {[%emt 00:07:36]} Ke7 {[%clk 00:29:27]}
{[%emt 00:01:35]} 23. Nd4 {[%clk 00:30:57]} {[%emt 00:04:09]} Bc4 {[%clk
00:26:03]} {[%emt 00:03:51]} 24. Nf5+ {[%clk 00:24:08]} {[%emt 00:07:19]} Ke6
{[%clk 00:18:00]} {[%emt 00:08:33]} 25. Bh3 {[%clk 00:24:04]} {[%emt 00:00:55]}
Kf6 {[%clk 00:13:18]} {[%emt 00:04:50]} 26. Nd6 {[%clk 00:20:17]} {[%emt
00:04:18]} Be6 {[%clk 00:13:42]} {[%emt 00:00:50]} 27. Ne4+ {[%clk 00:19:21]}
{[%emt 00:00:45]} Ke5 {[%clk 00:04:30]} {[%emt 00:09:40]} 28. Bxe6 {[%clk
00:19:07]} {[%emt 00:00:43]} fxe6 {[%clk 00:04:53]} {[%emt 00:00:37]} 29. Rxd3
{[%clk 00:19:24]} {[%emt 00:00:04]} Nb6 {[%clk 00:05:15]} 30. Ng5 {[%clk
00:18:15]} {[%emt 00:01:29]} Rc8 {[%clk 00:05:06]} {[%emt 00:00:36]} 31. Re3+
{[%clk 00:16:21]} {[%emt 00:02:25]} Kf6 {[%clk 00:04:57]} {[%emt 00:00:39]} 32.
f4 {[%clk 00:14:07]} {[%emt 00:02:46]} h6 {[%clk 00:04:13]} {[%emt 00:01:45]}
33. Rxe6+ {[%clk 00:12:39]} {[%emt 00:01:24]} Kf5 {[%clk 00:04:42]} {[%emt
00:00:33]} 34. Re5+ {[%clk 00:13:04]} Kg4 {[%clk 00:04:16]} {[%emt 00:00:29]}
35. Ne4 {[%clk 00:12:51]} {[%emt 00:00:46]} Nc4 {[%clk 00:03:54]} {[%emt
00:00:48]} 36. Rd5 {[%clk 00:08:42]} {[%emt 00:04:40]} Kf3 {[%clk 00:03:01]}
{[%emt 00:01:23]} 37. Nc5 {[%clk 00:07:56]} {[%emt 00:01:16]} Ne3 {[%clk
00:02:15]} {[%emt 00:01:43]} 38. Rd4 {[%clk 00:06:10]} {[%emt 00:02:16]} a5
{[%clk 00:01:46]} {[%emt 00:00:32]} 39. f5 {[%clk 00:06:20]} {[%emt 00:00:20]}
axb4 {[%clk 00:01:24]} {[%emt 00:00:51]} 40. axb4 {[%clk 00:06:00]} {[%emt
00:00:50]} Ke2 {[%clk 00:01:16]} {[%emt 00:00:43]} 41. Rf4 {[%clk 00:05:12]}
{[%emt 00:01:14]} Nd5 {[%clk 00:00:55]} {[%emt 00:01:18]} 42. Rf2+ {[%clk
00:05:32]} {[%emt 00:00:09]} Ke3 {[%clk 00:01:21]} 43. Ne6 {[%clk 00:04:59]}
{[%emt 00:00:41]} Nxb4 {[%clk 00:01:01]} {[%emt 00:00:50]} 44. Nxg7 {[%clk
00:03:55]} {[%emt 00:01:34]} Nd3 {[%clk 00:00:50]} {[%emt 00:00:42]} 45. Rf1
{[%clk 00:04:23]} Ke2 {[%clk 00:00:50]} {[%emt 00:00:46]} 46. f6 {[%clk
00:03:42]} {[%emt 00:00:57]} Ne5 {[%clk 00:01:08]} {[%emt 00:00:12]} 47. Rf2+
{[%clk 00:04:04]} {[%emt 00:00:14]} Ke3 {[%clk 00:01:21]} {[%emt 00:00:13]} 48.
Nf5+ {[%clk 00:04:29]} {[%emt 00:00:05]} Kd3 {[%clk 00:01:44]} {[%emt
00:00:05]} 49. Nxh6 {[%clk 00:04:41]} {[%emt 00:00:18]} Ke4 {[%clk 00:01:43]}
{[%emt 00:00:54]} 50. Kg2 {[%clk 00:04:23]} {[%emt 00:00:25]} Rh8 {[%clk
00:00:48]} {[%emt 00:01:25]} 51. Re2+ {[%clk 00:04:41]} {[%emt 00:00:32]} Kd5
{[%clk 00:01:10]} {[%emt 00:00:05]} 52. Rxe5+ {[%clk 00:05:06]} Kxe5 {[%clk
00:01:36]} 53. Nf7+ {[%clk 00:05:33]} Kxf6 {[%clk 00:02:03]} {[%emt 00:00:05]}
54. Nxh8 {[%clk 00:06:00]} 1-0